fUST/lending_fUST_20250514
["ID","MTS","AMOUNT","RATE_DAILY","PERIOD"]
[360990092,1747183865435,-400.0,0.00019178,2]
[360990093,1747183865444,-151.0,0.00019178,2]
[360990094,1747183865454,-162.41924779,0.00019178,2]
[360990095,1747183865464,-400.0,0.00019178,2]
[360990096,1747183865474,-503.44,0.00019178,2]
[360990097,1747183865483,-441.34,0.00019178,2]
[360990098,1747183865493,-400.0,0.00019178,2]
[360990099,1747183865502,-794.23,0.00019178,2]
[360990100,1747183865512,-1204.81,0.00019178,2]
[360990101,1747183865521,-2079.73,0.00019178,2]
[360990102,1747183865531,-876.32,0.00019178,2]
[360990103,1747183865541,-583.82,0.00019178,2]
[360990104,1747183865551,-475.27,0.00019178,2]
[360990105,1747183865560,-4444.62,0.00019178,2]
[360990106,1747183865570,-894.17,0.00019178,2]
[360990107,1747183865579,-1208.56,0.00019178,2]
[360990108,1747183865589,-1035.59,0.00019178,2]
[360990109,1747183865599,-383.27828735,0.00019178,2]
[360990110,1747183865609,-1223.85,0.00019178,2]
[360990111,1747183865619,-998.4,0.00019178,2]
[360990112,1747183865628,-968.28,0.00019178,2]
[360990113,1747183865638,-609.66,0.00019178,2]
[360990114,1747183865649,-693.43,0.00019178,2]
[360990115,1747183865659,-2084.24,0.00019178,2]
[360990116,1747183865669,-460.84905736,0.00019178,2]
[360990117,1747183865678,-582.31,0.00019178,2]
[360990118,1747183865687,-693.02,0.00019178,2]
[360990119,1747183865697,-951.31,0.00019178,2]
[360990120,1747183865706,-677.99,0.00019178,2]
[360990121,1747183865715,-429.92,0.00019178,2]
[360990122,1747183865725,-166.304379,0.00019178,2]
[360990123,1747183865734,-166.0,0.00019178,2]
[360990124,1747183865748,-1813.261644,0.00019178,2]
[360990125,1747183865758,-300.0,0.00019178,2]
[360990126,1747183865768,-2025.5984611,0.00019205,5]
[360990127,1747183865778,-500.0,0.00019205,2]
[360990128,1747183865788,-151.0,0.00019205,2]
[360990129,1747183865797,-500.0,0.00019205,2]
[360990130,1747183865807,-516.40264941,0.00019205,2]
[360990131,1747183865818,-500.0,0.00019205,2]
[360990132,1747183865827,-500.0,0.00019205,2]
[360990133,1747183865837,-500.0,0.00019205,2]
[360990134,1747183865846,-151.0,0.00019205,2]
[360990135,1747183865856,-500.0,0.00019205,2]
[360990136,1747183865865,-457.0,0.00019205,2]
[360990137,1747183865875,-151.0,0.00019205,2]
[360990138,1747183865884,-536.76993796,0.00019205,2]
[360990139,1747183865893,-151.0,0.00019205,2]
[360990140,1747183865903,-500.0,0.00019205,2]
[360990141,1747183865912,-500.0,0.00019205,2]
[360990142,1747183865922,-500.0,0.00019205,2]
[360990143,1747183865931,-500.0,0.00019205,2]
[360990144,1747183865940,-151.0,0.00019205,2]
[360990145,1747183865950,-151.0,0.00019205,2]
[360990146,1747183865959,-171.31604201,0.00019205,2]
[360990147,1747183865969,-500.0,0.00019205,2]
[360990148,1747183865979,-151.0,0.00019205,2]
[360990149,1747183865988,-151.0,0.00019205,2]
[360990150,1747183865997,-500.0,0.00019205,2]
[360990151,1747183866007,-508.88283193,0.00019205,2]
[360990152,1747183866016,-500.0,0.00019205,2]
[360990153,1747183866025,-500.0,0.00019205,2]
[360990154,1747183866035,-500.0,0.00019205,2]
[360990155,1747183866044,-500.0,0.00019205,2]
[360990156,1747183866054,-500.0,0.00019205,2]
[360990157,1747183866063,-500.0,0.00019205,2]
[360990158,1747183866072,-440.20539769,0.00019205,2]
[360990159,1747183866082,-500.0,0.00019205,2]
[360990160,1747183866092,-500.0,0.00019205,2]
[360990161,1747183866101,-151.0,0.00019205,2]
[360990162,1747183866111,-500.0,0.00019205,2]
[360990163,1747183866120,-151.0,0.00019205,2]
[360990164,1747183866130,-151.0,0.00019205,2]
[360990165,1747183866140,-8811.82067466,0.0001921,2]
[360990166,1747183866150,-500.0,0.00019233,2]
[360990167,1747183866160,-203.88911721,0.00019233,2]
[360990168,1747183866170,-500.0,0.00019233,2]
[360990169,1747183866179,-334.73710672,0.00019233,2]
[360990170,1747183866189,-500.0,0.00019233,2]
[360990171,1747183866198,-500.0,0.00019233,2]
[360990172,1747183866207,-190.70511132,0.00019233,2]
[360990173,1747183866217,-500.0,0.00019233,2]
[360990174,1747183866227,-457.0,0.00019233,2]
[360990175,1747183866236,-151.0,0.00019233,2]
[360990176,1747183866245,-151.0,0.00019233,2]
[360990177,1747183866255,-500.0,0.00019233,2]
[360990178,1747183866264,-242.69264333,0.00019233,2]
[360990179,1747183866273,-500.0,0.00019233,2]
[360990180,1747183866282,-500.0,0.00019233,2]
[360990181,1747183866291,-198.0,0.00019233,2]
[360990182,1747183866300,-198.0,0.00019233,2]
[360990183,1747183866309,-500.0,0.00019233,2]
[360990184,1747183866319,-190.80282316,0.00019233,2]
[360990185,1747183866329,-203.29694462,0.00019233,2]
[360990186,1747183866339,-500.0,0.00019233,2]
[360990187,1747183866348,-500.0,0.00019233,2]
[360990188,1747183866358,-500.0,0.00019233,2]
[360990189,1747183866368,-500.0,0.00019233,2]
[360990190,1747183866378,-500.0,0.00019233,2]
[360990191,1747183866388,-500.0,0.00019233,2]
[360990192,1747183866398,-500.0,0.00019233,2]
[360990193,1747183866407,-500.0,0.00019233,2]
[360990194,1747183866416,-500.0,0.00019233,2]
[360990195,1747183866426,-151.0,0.00019233,2]
[360990196,1747183866435,-500.0,0.00019233,2]
[360990197,1747183866446,-151.0,0.00019233,2]
[360990198,1747183866456,-151.0,0.00019233,2]
[360990199,1747183866466,-500.0,0.0001926,2]
[360990200,1747183866475,-500.0,0.0001926,2]
[360990201,1747183866485,-596.66555308,0.0001926,2]
[360990202,1747183866495,-500.0,0.0001926,2]
[360990203,1747183866505,-500.0,0.0001926,2]
[360990204,1747183866514,-457.0,0.0001926,2]
[360990205,1747183866524,-198.00645611,0.0001926,2]
[360990206,1747183866533,-151.0,0.0001926,2]
[360990207,1747183866543,-500.0,0.0001926,2]
[360990208,1747183866553,-500.0,0.0001926,2]
[360990209,1747183866563,-500.0,0.0001926,2]
[360990210,1747183866572,-500.0,0.0001926,2]
[360990211,1747183866581,-500.0,0.0001926,2]
[360990212,1747183866591,-500.0,0.0001926,2]
[360990213,1747183866600,-245.07343515,0.0001926,2]
[360990214,1747183866609,-500.0,0.0001926,2]
[360990215,1747183866619,-500.0,0.0001926,2]
[360990216,1747183866628,-345.42580828,0.0001926,2]
[360990217,1747183866639,-500.0,0.0001926,2]
[360990218,1747183866650,-500.0,0.0001926,2]
[360990219,1747183866660,-500.0,0.0001926,2]
[360990220,1747183866670,-201.51348227,0.0001926,2]
[360990221,1747183866679,-500.0,0.0001926,2]
[360990222,1747183866689,-151.0,0.0001926,2]
[360990223,1747183866698,-189.64773554,0.0001926,2]
[360990224,1747183866709,-500.0,0.00019288,2]
[360990225,1747183866719,-237.14200499,0.00019288,2]
[360990226,1747183866730,-500.81106373,0.00019288,2]
[360990227,1747183866741,-500.0,0.00019288,2]
[360990228,1747183866750,-457.0,0.00019288,2]
[360990229,1747183866760,-151.0,0.00019288,2]
[360990230,1747183866769,-500.0,0.00019288,2]
[360990231,1747183866779,-500.0,0.00019288,2]
[360990232,1747183866788,-178.84014441,0.00019288,2]
[360990233,1747183866797,-500.0,0.00019288,2]
[360990234,1747183866806,-500.99798433,0.00019288,2]
[360990235,1747183866819,-500.0,0.00019288,2]
[360990236,1747183866829,-500.0,0.00019288,2]
[360990237,1747183866838,-228.27589886,0.00019288,2]
[360990238,1747183866847,-500.0,0.00019288,2]
[360990239,1747183866858,-500.0,0.00019288,2]
[360990240,1747183866870,-500.0,0.00019288,2]
[360990241,1747183866885,-500.0,0.00019288,2]
[360990242,1747183866902,-243.3021388,0.00019288,2]
[360990243,1747183866919,-500.0,0.00019315,2]
[360990244,1747183866939,-500.0,0.00019315,2]
[360990245,1747183866951,-457.0,0.00019315,2]
[360990246,1747183866966,-225.08645869,0.00019315,2]
[360990247,1747183866983,-500.00349697,0.00019315,2]
[360990248,1747183866999,-500.32385088,0.00019315,2]
[360990249,1747183867015,-373.54682083,0.00019315,2]
[360990250,1747183867030,-227.62312916,0.00019315,2]
[360990251,1747183867048,-591.13138866,0.00019315,2]
[360990252,1747183867064,-500.0,0.00019315,2]
[360990253,1747183867077,-500.0,0.00019315,2]
[360990254,1747183867092,-363.84481926,0.00019315,2]
[360990255,1747183867106,-500.0,0.00019315,2]
[360990256,1747183867122,-30576.83675262,0.0001932,2]
[360990257,1747183867136,-151.0,0.0001932,2]
[360990258,1747183867149,-29329.40125629,0.00019329,2]
[360990259,1747183867160,-501.01556003,0.00019342,2]
[360990260,1747183867174,-500.0,0.00019342,2]
[360990261,1747183867186,-457.0,0.00019342,2]
[360990262,1747183867201,-500.0,0.00019342,2]
[360990263,1747183867217,-500.0,0.00019342,2]
[360990264,1747183867234,-258.55357424,0.00019342,2]
[360990265,1747183867249,-500.0,0.0001937,2]
[360990266,1747183867266,-457.0,0.0001937,2]
[360990267,1747183867278,-500.0,0.0001937,2]
[360990268,1747183867289,-500.0,0.0001937,2]
[360990269,1747183867302,-1000.0,0.00019386,2]
[360990270,1747183867318,-565.53813605,0.00019386,2]
[360990271,1747183867335,-1000.0,0.00019386,2]
[360990272,1747183867350,-500.0,0.00019397,2]
[360990273,1747183867361,-457.0,0.00019397,2]
[360990274,1747183867374,-500.0,0.00019397,2]
[360990275,1747183867388,-500.0,0.00019397,2]
[360990276,1747183867403,-2000.0,0.000194,2]
[360990277,1747183867416,-315.07330772,0.00019405,2]
[360990278,1747183867427,-500.0,0.00019425,2]
[360990279,1747183867439,-457.0,0.00019425,2]
[360990280,1747183867452,-500.0,0.00019425,2]
[360990281,1747183867465,-500.0,0.00019425,2]
[360990282,1747183867477,-1335.03976558,0.0001945,2]
[360990283,1747183867490,-500.0,0.00019452,2]
[360990284,1747183867502,-457.0,0.00019452,2]
[360990285,1747183867515,-500.0,0.00019452,2]
[360990286,1747183867527,-500.0,0.00019452,2]
[360990287,1747183867540,-1100.49,0.00019452,2]
[360990288,1747183867553,-1997.4,0.00019452,2]
[360990289,1747183867566,-151.0,0.00019452,2]
[360990290,1747183867578,-598.88,0.00019452,2]
[360990291,1747183867590,-498.85551416,0.00019452,2]
[360990292,1747183867603,-595.61,0.00019452,2]
[360990293,1747183867616,-443.36,0.00019452,2]
[360990294,1747183867628,-517.22,0.00019452,2]
[360990295,1747183867640,-712.77,0.00019452,2]
[360990296,1747183867654,-649.41,0.00019452,2]
[360990297,1747183867667,-426.76386489,0.00019452,2]
[360990298,1747183867679,-400.0,0.00019452,2]
[360990299,1747183867692,-400.0,0.00019452,2]
[360990300,1747183867703,-810.22,0.00019452,2]
[360990301,1747183867716,-400.0,0.00019452,2]
[360990302,1747183867727,-755.33,0.00019452,2]
[360990303,1747183867741,-7296.67,0.00019452,2]
[360990304,1747183867755,-437.56,0.00019452,2]
[360990305,1747183867768,-351.50578602,0.00019452,2]
[360990306,1747183867780,-1726.57,0.00019452,2]
[360990307,1747183867793,-434.43,0.00019452,2]
[360990308,1747183867808,-535.15,0.00019452,2]
[360990309,1747183867821,-526.72,0.00019452,2]
[360990310,1747183867834,-1106.28,0.00019452,2]
[360990311,1747183867846,-1990.16,0.00019452,2]
[360990312,1747183867859,-521.06,0.00019452,2]
[360990313,1747183867872,-832.57,0.00019452,2]
[360990314,1747183867885,-757.43,0.00019452,2]
[360990315,1747183867897,-414.08343224,0.00019452,2]
[360990316,1747183867910,-400.0,0.00019452,2]
[360990317,1747183867923,-400.0,0.00019452,2]
[360990318,1747183867936,-503.44,0.00019452,2]
[360990319,1747183867948,-441.34,0.00019452,2]
[360990320,1747183867960,-400.0,0.00019452,2]
[360990321,1747183867973,-794.23,0.00019452,2]
[360990322,1747183867986,-1204.81,0.00019452,2]
[360990323,1747183868000,-2079.73,0.00019452,2]
[360990324,1747183868012,-876.32,0.00019452,2]
[360990325,1747183868026,-583.82,0.00019452,2]
[360990326,1747183868039,-475.27,0.00019452,2]
[360990327,1747183868052,-4444.62,0.00019452,2]
[360990328,1747183868063,-894.17,0.00019452,2]
[360990329,1747183868076,-1208.56,0.00019452,2]
[360990330,1747183868090,-1035.59,0.00019452,2]
[360990331,1747183868102,-1223.85,0.00019452,2]
[360990332,1747183868116,-998.4,0.00019452,2]
[360990333,1747183868129,-968.28,0.00019452,2]
[360990334,1747183868142,-609.66,0.00019452,2]
[360990335,1747183868155,-693.43,0.00019452,2]
[360990336,1747183868167,-2084.24,0.00019452,2]
[360990337,1747183868179,-582.31,0.00019452,2]
[360990338,1747183868192,-693.02,0.00019452,2]
[360990339,1747183868204,-951.31,0.00019452,2]
[360990340,1747183868217,-677.99,0.00019452,2]
[360990341,1747183868230,-429.92,0.00019452,2]
[360990342,1747183868242,-632.01921779,0.00019479,2]
[360990343,1747183868254,-457.0,0.00019479,2]
[360990344,1747183868264,-500.0,0.00019479,2]
[360990345,1747183868273,-500.0,0.00019479,2]
[360990346,1747183868283,-457.0,0.00019507,2]
[360990347,1747183868293,-500.0,0.00019507,2]
[360990348,1747183868302,-500.0,0.00019507,2]
[360990349,1747183868312,-457.0,0.00019534,2]
[360990350,1747183868323,-500.0,0.00019534,2]
[360990351,1747183868333,-500.0,0.00019534,2]
[360990352,1747183868343,-4850.0,0.00019546,2]
[360990353,1747183868354,-151.0,0.00019546,2]
[360990354,1747183868364,-1613.0,0.00019557,2]
[360990355,1747183868374,-457.0,0.00019562,2]
[360990356,1747183868385,-500.0,0.00019562,2]
[360990357,1747183868395,-500.0,0.00019562,2]
[360990358,1747183868406,-457.0,0.00019589,2]
[360990359,1747183868415,-500.0,0.00019589,2]
[360990360,1747183868425,-302.68823408,0.00019589,2]
[360990361,1747183868435,-500.0,0.000196,2]
[360990362,1747183868444,-498.83994208,0.000196,2]
[360990363,1747183868454,-457.0,0.00019616,2]
[360990364,1747183868465,-513.72101076,0.00019616,2]
[360990365,1747183868475,-457.0,0.00019644,2]
[360990366,1747183868485,-3135.23296723,0.00019646,2]
[360990367,1747183868495,-457.0,0.00019671,2]
[360990368,1747183868504,-8811.82067466,0.00019693,2]
[360990369,1747183868514,-457.0,0.00019699,2]
[360990370,1747183868524,-457.0,0.00019726,2]
[360990371,1747183868533,-400.0,0.00019726,2]
[360990372,1747183868543,-1100.49,0.00019726,2]
[360990373,1747183868553,-1997.4,0.00019726,2]
[360990374,1747183868563,-400.16186672,0.00019726,2]
[360990375,1747183868573,-151.0,0.00019726,2]
[360990376,1747183868583,-151.0,0.00019726,2]
[360990377,1747183868592,-151.0,0.00019726,2]
[360990378,1747183868601,-598.88,0.00019726,2]
[360990379,1747183868611,-595.61,0.00019726,2]
[360990380,1747183868621,-443.36,0.00019726,2]
[360990381,1747183868631,-712.77,0.00019726,2]
[360990382,1747183868642,-649.41,0.00019726,2]
[360990383,1747183868652,-400.0,0.00019726,2]
[360990384,1747183868661,-400.0,0.00019726,2]
[360990385,1747183868671,-810.22,0.00019726,2]
[360990386,1747183868681,-400.0,0.00019726,2]
[360990387,1747183868690,-755.33,0.00019726,2]
[360990388,1747183868700,-7296.67,0.00019726,2]
[360990389,1747183868710,-437.56,0.00019726,2]
[360990390,1747183868719,-1726.57,0.00019726,2]
[360990391,1747183868729,-434.43,0.00019726,2]
[360990392,1747183868742,-535.15,0.00019726,2]
[360990393,1747183868751,-526.72,0.00019726,2]
[360990394,1747183869099,-1106.28,0.00019726,2]
[360990395,1747183869121,-1990.16,0.00019726,2]
[360990396,1747183869133,-521.06,0.00019726,2]
[360990397,1747183869143,-832.57,0.00019726,2]
[360990398,1747183869153,-757.43,0.00019726,2]
[360990399,1747183869164,-279.16756607,0.00019726,2]
[360990400,1747183869174,-312.38940057,0.00019726,2]
[360990401,1747183869184,-503.44,0.00019726,2]
[360990402,1747183869193,-441.34,0.00019726,2]
[360990403,1747183869203,-406.11705653,0.00019726,2]
[360990404,1747183869213,-794.23,0.00019726,2]
[360990405,1747183869222,-1204.81,0.00019726,2]
[360990406,1747183869232,-2079.73,0.00019726,2]
[360990407,1747183869241,-876.32,0.00019726,2]
[360990408,1747183869250,-583.82,0.00019726,2]
[360990409,1747183869260,-475.27,0.00019726,2]
[360990410,1747183869270,-4444.62,0.00019726,2]
[360990411,1747183869281,-894.17,0.00019726,2]
[360990412,1747183869291,-1208.56,0.00019726,2]
[360990413,1747183869300,-1035.59,0.00019726,2]
[360990414,1747183869310,-1223.85,0.00019726,2]
[360990415,1747183869320,-998.4,0.00019726,2]
[360990416,1747183869330,-968.28,0.00019726,2]
[360990417,1747183869341,-609.66,0.00019726,2]
[360990418,1747183869351,-693.43,0.00019726,2]
[360990419,1747183869360,-2084.24,0.00019726,2]
[360990420,1747183869369,-582.31,0.00019726,2]
[360990421,1747183869379,-693.02,0.00019726,2]
[360990422,1747183869388,-951.31,0.00019726,2]
[360990423,1747183869398,-677.99,0.00019726,2]
[360990424,1747183869408,-429.92,0.00019726,2]
[360990425,1747183869417,-1065.72186,0.0001974,5]
[360990426,1747183869427,-457.0,0.00019753,2]
[360990427,1747183869437,-1000.0,0.0001976,5]
[360990428,1747183869446,-1000.0,0.0001978,5]
[360990429,1747183869456,-1628.461506,0.0001978,5]
[360990430,1747183869465,-457.0,0.00019781,2]
[360990431,1747183869475,-2000.0,0.000198,2]
[360990432,1747183869484,-650.67622047,0.000198,2]
[360990433,1747183869493,-1000.0,0.000198,5]
[360990434,1747183869502,-1000.0,0.000198,5]
[360990435,1747183869511,-465.02424177,0.00019808,2]
[360990436,1747183869521,-151.0,0.00019812,2]
[360990437,1747183869530,-299996.0,0.00019812,5]
[360990438,1747183869538,-1000.0,0.0001982,5]
[360990439,1747183869548,-1000.0,0.0001982,5]
[360990440,1747183869557,-151.0,0.00019827,2]
[360990441,1747183869566,-151.0,0.00019827,2]
[360990442,1747183869575,-151.0,0.00019827,2]
[360990443,1747183869584,-151.0,0.00019827,2]
[360990444,1747183869594,-179490.92655437,0.00019827,15]
[360990445,1747183869603,-1000.0,0.0001984,5]
[360990446,1747183869612,-1000.0,0.0001984,5]
[360990447,1747183869621,-1000.0,0.0001986,5]
[360990448,1747183869631,-1000.0,0.0001986,5]
[360990449,1747183869641,-1000.0,0.0001988,5]
[360990450,1747183869650,-1000.0,0.0001988,5]
[360990451,1747183869659,-1000.0,0.000199,5]
[360990452,1747183869668,-1000.0,0.000199,5]
[360990453,1747183869677,-364.00669045,0.000199,2]
[360990454,1747183869686,-364.00669036,0.000199,2]
[360990455,1747183869695,-364.00669036,0.000199,2]
[360990456,1747183869704,-364.00669036,0.000199,2]
[360990457,1747183869713,-364.00669036,0.000199,2]
[360990458,1747183869722,-364.00669036,0.000199,2]
[360990459,1747183869732,-364.00669036,0.000199,2]
[360990460,1747183869742,-364.00669036,0.000199,2]
[360990461,1747183869752,-364.00669036,0.000199,2]
[360990462,1747183869761,-364.00669036,0.000199,2]
[360990463,1747183869770,-1000.0,0.0001992,5]
[360990464,1747183869779,-1000.0,0.0001992,5]
[360990465,1747183869789,-1000.0,0.0001994,5]
[360990466,1747183869798,-1000.0,0.0001994,5]
[360990467,1747183869807,-1000.0,0.0001996,5]
[360990468,1747183869817,-1000.0,0.0001996,5]
[360990469,1747183869826,-1000.0,0.0001998,5]
[360990470,1747183869836,-1000.0,0.0001998,5]
[360990471,1747183869845,-400.0,0.0002,2]
[360990472,1747183869854,-1178.5287683,0.0002,2]
[360990473,1747183869863,-14508.21227836,0.0002,20]
[360990474,1747183869872,-358.87051583,0.0002,2]
[360990475,1747183869881,-30000.0,0.0002,2]
[360990476,1747183869890,-1182.7534398,0.0002,2]
[360990477,1747183869899,-1642.99555195,0.0002,2]
[360990478,1747183869909,-6280.48367324,0.0002,2]
[360990479,1747183869918,-2000.0,0.0002,2]
[360990480,1747183869927,-400.0,0.0002,2]
[360990481,1747183869936,-67175.36209033,0.0002,2]
[360990482,1747183869945,-160.0,0.0002,4]
[360990483,1747183869954,-991.76060928,0.0002,2]
[360990484,1747183869963,-1100.49,0.0002,2]
[360990485,1747183869972,-500.0,0.0002,2]
[360990486,1747183869981,-500.0,0.0002,2]
[360990487,1747183869990,-489986.30053195,0.0002,7]
[360990488,1747183870000,-2000.0,0.0002,2]
[360990489,1747183870009,-2845.96129047,0.0002,4]
[360990490,1747183870018,-500.0,0.0002,17]
[360990491,1747183870027,-500.0,0.0002,17]
[360990492,1747183870036,-500.0,0.0002,17]
[360990493,1747183870045,-500.0,0.0002,17]
[360990494,1747183870054,-500.0,0.0002,17]
[360990495,1747183870063,-500.0,0.0002,17]
[360990496,1747183870073,-567.31,0.0002,17]
[360990497,1747183870084,-1997.4321522,0.0002,2]
[360990498,1747183870094,-10000.0,0.0002,2]
[360990499,1747183870103,-10000.0,0.0002,2]
[360990500,1747183870112,-10000.0,0.0002,2]
[360990501,1747183870121,-10000.0,0.0002,2]
[360990502,1747183870131,-10000.0,0.0002,5]
[360990503,1747183870140,-10559.54589885,0.0002,2]
[360990504,1747183870150,-1536.83155061,0.0002,2]
[360990505,1747183870160,-14258.57584365,0.0002,2]
[360990506,1747183870169,-151.0,0.0002,2]
[360990507,1747183870178,-301.224936,0.0002,2]
[360990508,1747183870188,-173.398846,0.0002,2]
[360990509,1747183870198,-3546.09440906,0.0002,2]
[360990510,1747183870208,-182.727176,0.0002,2]
[360990511,1747183870218,-151.0,0.0002,2]
[360990512,1747183870227,-599.10946334,0.0002,2]
[360990513,1747183870237,-595.72930414,0.0002,2]
[360990514,1747183870247,-300.0,0.0002,2]
[360990515,1747183870257,-1000.0,0.0002,5]
[360990516,1747183870267,-1000.0,0.0002,5]
[360990517,1747183870276,-443.47282748,0.0002,2]
[360990518,1747183870287,-712.98034095,0.0002,2]
[360990519,1747183870297,-649.49247431,0.0002,2]
[360990520,1747183870306,-160.0,0.0002,3]
[360990521,1747183870315,-160.0,0.0002,7]
[360990522,1747183870324,-160.0,0.0002,7]
[360990523,1747183870333,-250.0,0.0002,30]
[360990524,1747183870342,-997.88380159,0.0002,7]
[360990525,1747183870352,-151.51515152,0.0002,2]
[360990526,1747183870361,-300.28222252,0.0002,2]
[360990527,1747183870370,-199.30438422,0.0002,2]
[360990528,1747183870380,-810.22079313,0.0002,2]
[360990529,1747183870391,-364.1366613,0.0002,2]
[360990530,1747183870400,-755.49300706,0.0002,2]
[360990531,1747183870411,-160.0,0.0002,7]
[360990532,1747183870421,-7296.85708748,0.0002,2]
[360990533,1747183870431,-437.6,0.0002,2]
[360990534,1747183870440,-212.19047112,0.0002,7]
[360990535,1747183870449,-12625.42653527,0.0002,7]
[360990536,1747183870459,-1726.60221199,0.0002,2]
[360990537,1747183870468,-434.59361345,0.0002,2]
[360990538,1747183870477,-535.19129223,0.0002,2]
[360990539,1747183870487,-526.88786086,0.0002,2]
[360990540,1747183870496,-1106.35163523,0.0002,2]
[360990541,1747183870506,-1990.28920341,0.0002,2]
[360990542,1747183870515,-521.27072818,0.0002,2]
[360990543,1747183870524,-832.5801101,0.0002,2]
[360990544,1747183870534,-757.57273343,0.0002,2]
[360990545,1747183870544,-503.49908123,0.0002,2]
[360990546,1747183870554,-441.50042966,0.0002,2]
[360990547,1747183870564,-794.34282369,0.0002,2]
[360990548,1747183870573,-1204.90861559,0.0002,2]
[360990549,1747183870583,-2079.80970228,0.0002,2]
[360990550,1747183870592,-876.50600339,0.0002,2]
[360990551,1747183870602,-583.89554545,0.0002,2]
[360990552,1747183870611,-475.47799901,0.0002,2]
[360990553,1747183870623,-4444.83733928,0.0002,2]
[360990554,1747183870632,-894.21729513,0.0002,2]
[360990555,1747183870641,-1208.57942205,0.0002,2]
[360990556,1747183870651,-1035.70521839,0.0002,2]
[360990557,1747183870661,-1223.99552721,0.0002,2]
[360990558,1747183870671,-998.46393937,0.0002,2]
[360990559,1747183870680,-968.28815109,0.0002,2]
[360990560,1747183870690,-609.81,0.0002,2]
[360990561,1747183870700,-693.6176538,0.0002,2]
[360990562,1747183870710,-4000.0,0.0002,4]
[360990563,1747183870720,-2084.45419476,0.0002,2]
[360990564,1747183870729,-157.78,0.0002,2]
[360990565,1747183870740,-157.78,0.0002,2]
[360990566,1747183870750,-582.32328605,0.0002,2]
[360990567,1747183870760,-693.07837316,0.0002,2]
[360990568,1747183870769,-951.4145893,0.0002,2]
[360990569,1747183870779,-678.20371019,0.0002,2]
[360990570,1747183870789,-430.04,0.0002,2]
[360990571,1747183870798,-2000.0,0.000201,2]
[360990572,1747183870807,-2000.0,0.000201,2]
[360990573,1747183870817,-8811.82067466,0.00020176,2]
[360990574,1747183870827,-705.513879,0.00020187,2]
[360990575,1747183870837,-478.22945786,0.00020273,2]
[360990576,1747183870846,-1100.49,0.00020273,2]
[360990577,1747183870856,-1000.0,0.00020296,2]
[360990578,1747183870865,-500.0,0.00020296,2]
[360990579,1747183870874,-1000.0,0.00020296,2]
[360990580,1747183870883,-313.23772054,0.00020296,2]
[360990581,1747183870892,-1000.0,0.00020296,2]
[360990582,1747183870903,-500.0,0.00020296,2]
[360990583,1747183870912,-2000.0,0.000204,2]
[360990584,1747183870921,-1100.49,0.00020547,2]
[360990585,1747183870931,-151.0,0.00020548,2]
[360990586,1747183870941,-151.0,0.00020548,2]
[360990587,1747183870950,-151.0,0.00020548,2]
[360990588,1747183870960,-188.920426,0.00020548,2]
[360990589,1747183870970,-24847.91211469,0.0002061,2]
[360990590,1747183870980,-8811.82067466,0.00020659,3]
[360990591,1747183870989,-1000.0,0.00020696,2]